fUST/lending_fUST_20251029
["ID","MTS","AMOUNT","RATE_DAILY","PERIOD"]
[392620465,1761751002339,929.76,0.00033624,120]
[392620466,1761751002415,500.0,0.00033624,120]
[392620467,1761751002511,929.76,0.00033624,120]
[392620468,1761751002635,500.0,0.00033624,120]
[392620469,1761751002779,929.76,0.00033624,120]
[392620470,1761751002891,500.0,0.00033624,120]
[392620471,1761751003023,929.76,0.00033624,120]
[392620472,1761751003162,572.96794146,0.00033624,120]
[392620473,1761751003255,929.76,0.00033624,120]
[392620474,1761751003503,929.76,0.00033624,120]
[392620475,1761751003732,929.76,0.00033624,120]
[392620476,1761751003994,929.76,0.00033624,120]
[392620477,1761751004067,500.0,0.00033624,120]
[392620478,1761751004238,929.76,0.00033624,120]
[392620479,1761751004304,500.0,0.00033624,120]
[392620480,1761751004485,500.0,0.00033624,120]
[392620481,1761751004549,929.76,0.00033624,120]
[392620482,1761751004710,929.76,0.00033624,120]
[392620483,1761751004778,500.0,0.00033624,120]
[392620484,1761751005136,929.76,0.00033624,120]
[392620485,1761751005205,500.0,0.00033624,120]
[392620486,1761751005278,929.76,0.00033624,120]
[392620487,1761751005345,533.39521788,0.00033624,120]
[392620488,1761751005451,929.76,0.00033624,120]
[392620489,1761751005689,929.76,0.00033624,120]
[392620490,1761751005929,929.76,0.00033624,120]
[392620491,1761751007652,500.0,0.00033624,120]
[392620492,1761751007894,500.0,0.00033624,120]
[392620493,1761751008259,500.0,0.00033624,120]
[392620494,1761751008453,214.51,0.00033624,120]
[392620495,1761751008524,500.0,0.00033624,120]
[392620496,1761751008591,500.0,0.00033624,120]
[392620497,1761751008732,500.0,0.00033624,120]
[392620498,1761751008804,500.0,0.00033624,120]
[392620499,1761751008878,929.76,0.00033624,120]
[392620500,1761751008972,500.0,0.00033624,120]
[392620501,1761751009046,500.0,0.00033624,120]
[392620502,1761751009125,622.13,0.00033624,120]
[392620503,1761751009191,929.99285432,0.00033624,120]
[392620504,1761751009669,622.13,0.00033624,120]
[392620505,1761751009785,395.67681072,0.00033624,120]
[392620506,1761751009915,500.0,0.00033624,120]
[392620507,1761751009995,622.13,0.00033624,120]
[392620508,1761751010183,500.0,0.00033624,120]
[392620509,1761751010252,622.13,0.00033624,120]
[392620510,1761751010423,622.13,0.00033624,120]
[392620511,1761751010490,500.0,0.00033624,120]
[392620512,1761751010670,622.13,0.00033624,120]
[392620513,1761751010740,500.0,0.00033624,120]
[392620514,1761751010886,500.0,0.00033624,120]
[392620515,1761751010953,622.13,0.00033624,120]
[392620516,1761751011029,500.0,0.00033624,120]
[392620517,1761751011133,500.0,0.00033624,120]
[392620518,1761751011202,622.13,0.00033624,120]
[392620519,1761751011269,500.0,0.00033624,120]
[392620520,1761751011381,500.0,0.00033624,120]
[392620521,1761751011444,622.13,0.00033624,120]
[392620522,1761751011509,500.0,0.00033624,120]
[392620523,1761751011658,500.0,0.00033624,120]
[392620524,1761751011722,500.0,0.00033624,120]
[392620525,1761751011809,622.13,0.00033624,120]
[392620526,1761751011890,500.0,0.00033624,120]
[392620527,1761751011960,622.13,0.00033624,120]
[392620528,1761751012138,500.0,0.00033624,120]
[392620529,1761751012208,622.13,0.00033624,120]
[392620530,1761751012378,500.0,0.00033624,120]
[392620531,1761751012446,622.13,0.00033624,120]
[392620532,1761751012511,500.0,0.00033624,120]
[392620533,1761751012617,500.0,0.00033624,120]
[392620534,1761751012683,622.13,0.00033624,120]
[392620535,1761751012747,500.0,0.00033624,120]
[392620536,1761751012872,500.0,0.00033624,120]
[392620537,1761751012938,622.13,0.00033624,120]
[392620538,1761751013006,500.0,0.00033624,120]
[392620539,1761751013121,500.0,0.00033624,120]
[392620540,1761751013189,622.13,0.00033624,120]
[392620541,1761751013252,500.0,0.00033624,120]
[392620542,1761751013315,500.0,0.00033624,120]
[392620543,1761751013388,500.0,0.00033624,120]
[392620544,1761751013449,622.13,0.00033624,120]
[392620545,1761751013512,500.0,0.00033624,120]
[392620546,1761751013572,500.0,0.00033624,120]
[392620547,1761751013637,500.0,0.00033624,120]
[392620548,1761751013703,622.13,0.00033624,120]
[392620549,1761751013828,500.0,0.00033624,120]
[392620550,1761751013893,500.0,0.00033624,120]
[392620551,1761751013960,622.13,0.00033624,120]
[392620552,1761751014073,500.0,0.00033624,120]
[392620553,1761751014140,622.13,0.00033624,120]
[392620554,1761751014206,500.0,0.00033624,120]
[392620555,1761751014316,500.0,0.00033624,120]
[392620556,1761751014378,500.0,0.00033624,120]
[392620557,1761751014438,500.0,0.00033624,120]
[392620558,1761751014498,622.13,0.00033624,120]
[392620559,1761751014589,500.0,0.00033624,120]
[392620560,1761751014652,500.0,0.00033624,120]
[392620561,1761751014728,622.13,0.00033624,120]
[392620562,1761751014795,500.0,0.00033624,120]
[392620563,1761751014872,279.3,0.00033624,120]
[392620564,1761751014946,500.0,0.00033624,120]
[392620565,1761751015027,500.0,0.00033624,120]
[392620566,1761751015098,622.18877602,0.00033624,120]
[392620567,1761751015169,500.0,0.00033624,120]
[392620568,1761751015237,500.0,0.00033624,120]
[392620569,1761751015303,500.0,0.00033624,120]
[392620570,1761751015444,500.0,0.00033624,120]
[392620571,1761751015516,500.0,0.00033624,120]
[392620572,1761751015585,500.0,0.00033624,120]
[392620573,1761751015698,500.0,0.00033624,120]
[392620574,1761751015769,500.0,0.00033624,120]
[392620575,1761751015840,500.0,0.00033624,120]
[392620576,1761751015945,500.0,0.00033624,120]
[392620577,1761751016026,355.68,0.00033624,120]
[392620578,1761751016100,500.0,0.00033624,120]
[392620579,1761751016206,500.0,0.00033624,120]
[392620580,1761751016306,500.0,0.00033624,120]
[392620581,1761751016519,500.0,0.00033624,120]
[392620582,1761751016584,500.0,0.00033624,120]
[392620583,1761751016761,500.0,0.00033624,120]
[392620584,1761751016839,500.0,0.00033624,120]
[392620585,1761751016942,500.0,0.00033624,120]
[392620586,1761751017027,500.0,0.00033624,120]
[392620587,1761751017100,500.0,0.00033624,120]
[392620588,1761751017168,500.0,0.00033624,120]
[392620589,1761751017238,500.0,0.00033624,120]
[392620590,1761751017306,2137.32,0.00033624,120]
[392620591,1761751017372,500.0,0.00033624,120]
[392620592,1761751017439,500.0,0.00033624,120]
[392620593,1761751017507,500.0,0.00033624,120]
[392620594,1761751017578,500.0,0.00033624,120]
[392620595,1761751017644,2137.32,0.00033624,120]
[392620596,1761751017715,468.07110266,0.00033624,120]
[392620597,1761751017783,500.0,0.00033624,120]
[392620598,1761751017849,500.0,0.00033624,120]
[392620599,1761751017920,500.0,0.00033624,120]
[392620600,1761751017996,2137.32,0.00033624,120]
[392620601,1761751018179,500.0,0.00033624,120]
[392620602,1761751018369,500.0,0.00033624,120]
[392620603,1761751018433,2137.32,0.00033624,120]
[392620604,1761751018501,500.0,0.00033624,120]
[392620605,1761751018567,500.0,0.00033624,120]
[392620606,1761751018631,2137.32,0.00033624,120]
[392620607,1761751018694,500.0,0.00033624,120]
[392620608,1761751018762,316.21596026,0.00033624,120]
[392620609,1761751018826,2137.32,0.00033624,120]
[392620610,1761751018907,2137.32,0.00033624,120]
[392620611,1761751018999,2137.32,0.00033624,120]
[392620612,1761751019251,2137.32,0.00033624,120]
[392620613,1761751019529,2137.32,0.00033624,120]
[392620614,1761751019787,764.43685083,0.00033624,120]
[392620640,1761751283821,4000.00000061,0.00030136,120]
[392620658,1761751450938,5000.0,0.000181,5]
[392620668,1761751475071,5000.0,0.000181,5]
[392620694,1761751625125,-335.39192295,0.00018158,2]
[392620695,1761751633086,-156.84995983,0.00018158,2]
[392620721,1761751749092,-5000.0,0.00017796,2]
[392620722,1761751749115,-168.08764955,0.00017886,2]
[392620723,1761751749142,-2487.24018734,0.00017976,2]
[392620724,1761751749163,-370.53276116,0.00018317,2]
[392620725,1761751749183,-817.7470948,0.00018441,2]
[392620726,1761751749205,-162.928175,0.00018493,2]
[392620727,1761751749227,-300.0,0.00018723,2]
[392620728,1761751749247,-1012.24138595,0.00018724,2]
[392620729,1761751749268,-1200.0,0.00018974,2]
[392620730,1761751749291,-1000.0,0.00018975,2]
[392620731,1761751749312,-1200.0,0.00018999,2]
[392620732,1761751749333,-156.93201907,0.00018999,2]
[392620733,1761751749357,-500.0,0.00018999,2]
[392620734,1761751749396,-500.0,0.00018999,2]
[392620735,1761751749419,-500.0,0.00018999,2]
[392620736,1761751749440,-231.44403707,0.00018999,2]
[392620737,1761751749463,-500.0,0.00018999,2]
[392620738,1761751749492,-300.89784163,0.00018999,2]
[392620739,1761751749518,-208.68890124,0.00018999,2]
[392620740,1761751749544,-272.73085072,0.00018999,2]
[392620741,1761751749576,-500.0,0.00018999,2]
[392620742,1761751749603,-500.0,0.00018999,2]
[392620743,1761751749632,-500.0,0.00018999,2]
[392620744,1761751749660,-500.0,0.00018999,2]
[392620746,1761751749683,-500.0,0.00018999,2]
[392620747,1761751749710,-500.0,0.00018999,2]
[392620748,1761751749742,-500.0,0.00018999,2]
[392620749,1761751749770,-500.0,0.00018999,2]
[392620750,1761751749795,-500.0,0.00018999,2]
[392620751,1761751749820,-500.0,0.00018999,2]
[392620752,1761751749842,-183.12671826,0.00018999,2]
[392620753,1761751749866,-500.0,0.00018999,2]
[392620754,1761751749892,-579.97549669,0.00018999,2]
[392620755,1761751749915,-500.0,0.00018999,2]
[392620756,1761751749937,-500.0,0.00018999,2]
[392620757,1761751749961,-500.0,0.00018999,2]
[392620758,1761751749982,-500.0,0.00018999,2]
[392620759,1761751750006,-1910.27698799,0.00019,2]
[392620760,1761751750027,-23800.78265825,0.00019,2]
[392620770,1761751774098,-5000.0,0.0001881,2]
[392620771,1761751774118,-21165.80423972,0.00019,2]
[392620772,1761751774142,-1012.24138595,0.00019004,2]
[392620773,1761751779919,5000.0,0.00019095,2]
[392620782,1761751808270,5000.0,0.00019095,2]
[392620824,1761751834223,5000.0,0.00019095,2]
[392620826,1761751837353,-1012.24138595,0.00019288,2]
[392620827,1761751837363,-249.75540979,0.00019568,2]
[392620828,1761751837373,-1012.24138596,0.00019668,2]
[392620830,1761751837383,-440.00206969,0.00019712,2]
[392620831,1761751837393,-300.0,0.00019712,2]
[392620832,1761751837402,-632.0,0.00019712,2]
[392620833,1761751837412,-322.7597486,0.00019713,2]
[392620834,1761751837564,-871.21080004,0.00019713,2]
[392620835,1761751837576,-2582.18287649,0.00019713,2]
[392620836,1761751837585,-1383.34006018,0.00019713,2]
[392620837,1761751837596,-1711.85747175,0.00019713,2]
[392620838,1761751837608,-229.53662711,0.00019713,2]
[392620839,1761751837617,-151.13734586,0.00019801,2]
[392620840,1761751837627,-849.48,0.00019803,3]
[392620841,1761751837637,-3394.82905503,0.0001981,2]
[392620859,1761751838611,-2099.85960111,0.0001981,2]
[392620860,1761751838621,-355.83652892,0.00019812,2]
[392620861,1761751838631,-283.19395598,0.00019812,2]
[392620862,1761751838640,-4358.39440121,0.00019813,2]
[392620863,1761751838653,-11204.80831969,0.00019813,2]
[392620864,1761751838665,-17336.80039386,0.00019813,2]
[392620865,1761751838676,-19497.12743589,0.00019813,2]
[392620868,1761751840749,-2971.79517921,0.00019813,2]
[392620869,1761751840808,-28570.5,0.00019813,2]
[392620870,1761751840820,-310.0,0.00019813,2]
[392620871,1761751840833,-11245.0,0.00019813,2]
[392620885,1761751843653,-2803.25,0.00019813,2]
[392620897,1761751843788,-2361.57660984,0.00019813,2]
[392621051,1761751846787,-17.42777331,0.00019813,2]
[392621058,1761751863998,1024.7913752,0.00030137,120]
[392621098,1761752238013,259.87,0.00014443,30]
[392621099,1761752238471,519.74,0.0001685,30]
[392621101,1761752323395,255.62,0.00014284,30]
[392621102,1761752323887,511.24,0.00016664,30]
[392621109,1761752408963,251.43,0.00013841,30]
[392621110,1761752409422,502.87,0.00016148,30]
[392621111,1761752410411,754.3,0.00018455,30]
[392621137,1761752491369,243.21,0.00014056,30]
[392621138,1761752491826,486.41,0.00016398,30]
[392621139,1761752576342,239.23,0.00013929,30]
[392621140,1761752576784,478.45,0.0001625,30]
[392621141,1761752577226,717.68,0.00018572,30]
[392621145,1761752664172,231.4,0.00013918,30]
[392621146,1761752664600,462.79,0.00016238,30]
[392621147,1761752665061,694.19,0.00018557,30]
[392621171,1761752747728,223.82,0.00014134,30]
[392621172,1761752748181,447.65,0.0001649,30]
[392621173,1761752756129,-207.19721806,0.00017451,2]
[392621174,1761752756306,-162.70249628,0.00017451,2]
[392621176,1761752781181,741.506131,0.00017429,2]
[392621177,1761752781204,4258.493869,0.00017429,2]
[392621178,1761752804903,1648.83723264,0.00017429,2]
[392621179,1761752831098,220.16,0.00014371,30]
[392621180,1761752831553,440.32,0.00016766,30]
[392621181,1761752832086,-108.09640066,0.00017451,2]
[392621182,1761752832108,-1200.0,0.00017594,2]
[392621183,1761752832127,-300.0,0.00017594,2]
[392621184,1761752832149,-300.0,0.00017594,2]
[392621185,1761752832170,-527.02084833,0.00017595,2]
[392621186,1761752832193,-2108.08339331,0.00017595,2]
[392621187,1761752832216,-1339.15847222,0.00017595,2]
[392621188,1761752848110,-3399.28597508,0.00017595,2]
[392621189,1761752848131,-168.08764955,0.00017693,2]
[392621190,1761752848155,-1345.94332818,0.00017791,2]
[392621197,1761752916481,216.83,0.00014342,30]
[392621198,1761752916937,433.67,0.00016732,30]
[392621200,1761752952108,-2095.15710734,0.00017613,2]
[392621201,1761752955122,-1194.74495347,0.00017613,2]
[392621202,1761752955160,-306.48883756,0.00017613,2]
[392621203,1761752960120,-306.48883756,0.00017613,2]
[392621204,1761752970176,-1097.12026407,0.00017613,2]
[392621205,1761752970195,-2616.3843658,0.00017925,2]
[392621206,1761752970216,-480.0,0.00018517,2]
[392621207,1761752970235,-300.0,0.00018517,2]
[392621208,1761752970253,-42574.50526737,0.00018518,2]
[392621209,1761752970273,-500.0,0.00018518,2]
[392621210,1761752970292,-500.0,0.00018518,2]
[392621211,1761752970312,-500.0,0.00018518,2]
[392621212,1761752970334,-500.0,0.00018518,2]
[392621213,1761752970353,-500.0,0.00018518,2]
[392621214,1761752970372,-584.79514597,0.00018518,2]
[392621215,1761752970394,-500.0,0.00018518,2]
[392621216,1761752970416,-500.0,0.00018518,2]
[392621217,1761752970439,-500.0,0.00018518,2]
[392621218,1761752970462,-455.25369503,0.00018518,2]
[392621219,1761752970483,-602.34575112,0.00018518,2]
[392621220,1761752970505,-492.54816943,0.00018518,2]
[392621221,1761752970528,-500.0,0.00018518,2]
[392621222,1761752970548,-500.0,0.00018518,2]
[392621223,1761752970569,-500.0,0.00018518,2]
[392621224,1761752970590,-468.53195411,0.00018518,2]
[392621225,1761752970610,-500.0,0.00018518,2]
[392621226,1761752970630,-500.0,0.00018518,2]
[392621227,1761752970649,-500.0,0.00018518,2]
[392621228,1761752970668,-500.0,0.00018518,2]
[392621229,1761752970687,-500.0,0.00018518,2]
[392621230,1761752970706,-3865.4721395,0.00018721,2]
[392621231,1761752970725,-500.0,0.00018773,2]
[392621232,1761752970744,-500.0,0.00018773,2]
[392621233,1761752970762,-500.0,0.00018773,2]
[392621234,1761752970782,-500.0,0.00018773,2]
[392621235,1761752970801,-302.6368751,0.000189,2]
[392621236,1761752970823,-650.5,0.00019123,30]
[392621237,1761752970842,-6707.27124319,0.000192,2]
[392621238,1761752970862,-2000.0,0.00019261,2]
[392621239,1761752980182,5000.0,0.00019127,2]
[392621241,1761753000236,209.74,0.00013984,30]
[392621242,1761753000695,419.48,0.00016315,30]
[392621243,1761753001154,629.21,0.00018645,30]
[392621244,1761753003151,1416.24,0.00017429,2]
[392621245,1761753004043,5000.0,0.00019127,2]
[392621247,1761753024079,3999.9639416,0.00018426,2]
[392621248,1761753027289,2542.13294613,0.00019214,2]
[392621311,1761753032252,-2457.86705387,0.00019214,2]
[392621314,1761753032263,-167.72589656,0.00019408,2]
[392621316,1761753032273,-500.0,0.00019495,2]
[392621318,1761753032282,-300.0,0.00019523,2]
[392621320,1761753032292,-300.0,0.00019523,2]
[392621322,1761753032303,-300.0,0.00019523,2]
[392621324,1761753032313,-300.0,0.00019523,2]
[392621326,1761753032325,-300.0,0.00019523,2]
[392621327,1761753032334,-3053.0762025,0.00019524,2]
[392621328,1761753032350,-6663.9038429,0.00019524,2]
[392621329,1761753032360,-2987.4676045,0.00019524,2]
[392621330,1761753032370,-3020.92274008,0.00019612,2]
[392621331,1761753032384,-2216.48943936,0.00019612,2]
[392621333,1761753032394,-1480.30463882,0.00019612,2]
[392621335,1761753032403,-500.0,0.000197,2]
[392621338,1761753032414,-151.0,0.000197,2]
[392621341,1761753032424,-151.0,0.000197,2]
[392621345,1761753032434,-151.0,0.000197,2]
[392621348,1761753032444,-151.0,0.000197,2]
[392621351,1761753032456,-151.0,0.000197,2]
[392621353,1761753032467,-151.0,0.000197,2]
[392621356,1761753032477,-379.24152619,0.000197,2]
[392621358,1761753032488,-151.0,0.000197,2]
[392621360,1761753032499,-151.0,0.000197,2]
[392621362,1761753032509,-151.0,0.000197,2]
[392621364,1761753032520,-151.0,0.000197,2]
[392621366,1761753032530,-151.0,0.000197,2]
[392621368,1761753032541,-151.0,0.000197,2]
[392621370,1761753032551,-151.0,0.000197,2]
[392621372,1761753032561,-152.96043574,0.000197,2]
[392621374,1761753032574,-151.0,0.000197,2]
[392621376,1761753032584,-151.0,0.000197,2]
[392621378,1761753032594,-248.76630607,0.000197,2]
[392621380,1761753032606,-151.0,0.000197,2]
[392621382,1761753032616,-151.0,0.000197,2]
[392621384,1761753032626,-151.0,0.000197,2]
[392621386,1761753032636,-151.0,0.000197,2]
[392621388,1761753032646,-1000.0,0.000197,2]
[392621390,1761753032655,-151.0,0.000197,2]
[392621392,1761753032666,-1000.0,0.000197,2]
[392621394,1761753032675,-151.0,0.000197,2]
[392621396,1761753032686,-151.0,0.000197,2]
[392621398,1761753032695,-1000.0,0.000197,2]
[392621400,1761753032705,-151.0,0.000197,2]
[392621402,1761753032715,-206.79050221,0.000197,2]
[392621404,1761753032726,-1000.0,0.000197,2]
[392621406,1761753032735,-151.0,0.000197,2]
[392621408,1761753032745,-1000.0,0.000197,2]
[392621410,1761753032755,-151.0,0.000197,2]
[392621412,1761753032764,-1000.0,0.000197,2]
[392621414,1761753032773,-151.0,0.000197,2]
[392621416,1761753032783,-1000.0,0.000197,2]
[392621418,1761753032794,-151.0,0.000197,2]
[392621420,1761753032803,-187.58760619,0.000197,2]
[392621422,1761753032813,-151.0,0.000197,2]
[392621424,1761753032825,-151.0,0.000197,2]
[392621426,1761753032835,-151.0,0.000197,2]
[392621428,1761753032844,-151.0,0.000197,2]
[392621430,1761753032854,-151.0,0.000197,2]
[392621432,1761753032864,-151.0,0.000197,2]
[392621434,1761753032874,-151.0,0.000197,2]
[392621436,1761753032884,-151.0,0.000197,2]
[392621438,1761753032893,-314.72,0.00019702,3]
[392621440,1761753032903,-157.36,0.00019702,3]
[392621442,1761753032913,-472.12,0.00019702,3]
[392621444,1761753032922,-183365.35323697,0.00019712,2]
[392621446,1761753032934,-50274.0,0.00019712,2]
[392621698,1761753037897,-198.23576919,0.00019711,2]
[392621699,1761753037907,-310.13669266,0.00019711,2]
[392621700,1761753037916,-5155.51874796,0.00019712,2]
[392621701,1761753037928,-131205.12801507,0.00019712,2]
[392621702,1761753037937,-151.0,0.00019712,7]
[392621703,1761753037946,-277.445594,0.00019712,7]
[392621704,1761753037956,-277.445594,0.00019712,7]
[392621705,1761753037965,-277.445594,0.00019712,7]
[392621706,1761753037974,-277.445594,0.00019712,7]
[392621707,1761753037983,-500.0,0.0001977,2]
[392621708,1761753037992,-500.0,0.00019773,2]
[392621709,1761753038002,-500.0,0.00019773,2]
[392621710,1761753038012,-500.0,0.00019773,2]
[392621711,1761753038022,-196.26471914,0.00019773,2]
[392621712,1761753038032,-500.0,0.00019773,2]
[392621713,1761753038041,-500.0,0.00019773,2]
[392621714,1761753038051,-500.0,0.00019773,2]
[392621715,1761753038060,-500.0,0.00019773,2]
[392621716,1761753038069,-500.0,0.00019773,2]
[392621717,1761753038079,-413.56867548,0.00019773,2]
[392621718,1761753038088,-398.01211551,0.00019773,2]
[392621719,1761753038098,-500.0,0.00019773,2]
[392621720,1761753038107,-500.0,0.00019773,2]
[392621721,1761753038118,-500.0,0.00019773,2]
[392621722,1761753038127,-500.6614067,0.00019773,2]
[392621723,1761753038137,-500.0,0.00019773,2]
[392621724,1761753038146,-500.0,0.00019773,2]
[392621725,1761753038156,-531.79047228,0.00019773,2]
[392621726,1761753038166,-501.22830648,0.00019773,2]
[392621727,1761753038175,-183.77965038,0.00019773,2]
[392621728,1761753038185,-500.0,0.00019773,2]
[392621729,1761753038195,-500.0,0.00019773,2]
[392621730,1761753038205,-500.0,0.00019773,2]
[392621731,1761753038215,-500.0,0.00019773,2]
[392621732,1761753038225,-500.0,0.00019773,2]
[392621733,1761753038234,-500.0,0.00019773,2]
[392621734,1761753038244,-151.0,0.00019801,2]
[392621735,1761753038254,-500.0,0.00019801,2]
[392621736,1761753038264,-151.0,0.00019801,2]
[392621737,1761753038274,-1000.0,0.00019812,2]
[392621738,1761753038284,-1000.0,0.00019812,2]
[392621739,1761753038293,-1000.0,0.00019812,2]
[392621740,1761753038303,-1052.06200516,0.00019812,2]
[392621741,1761753038313,-151.0,0.00019812,7]
[392621742,1761753038324,-151.0,0.00019812,7]
[392621743,1761753038334,-151.0,0.00019812,7]
[392621744,1761753038343,-151.0,0.00019812,7]
[392621745,1761753038353,-151.0,0.00019812,7]
[392621746,1761753038362,-151.0,0.00019812,7]
[392621747,1761753038372,-151.0,0.00019812,7]
[392621748,1761753038381,-61.86840836,0.00019812,7]
[392621749,1761753038513,-143.55466364,0.00019812,7]
[392621750,1761753038522,-1026.418204,0.00019812,7]
[392621751,1761753038533,-1026.418204,0.00019812,7]
[392621752,1761753038544,-1026.418204,0.00019812,7]
[392621753,1761753038554,-1026.418204,0.00019812,7]
[392621754,1761753038564,-151.0,0.00019812,7]
[392621755,1761753038575,-196.874076,0.00019812,7]
[392621756,1761753038585,-399.45345,0.00019812,7]
[392621757,1761753038596,-399.45345,0.00019812,7]
[392621758,1761753038606,-399.45345,0.00019812,7]
[392621759,1761753038616,-1216.547941,0.00019812,7]
[392621760,1761753038628,-399.45345,0.00019812,7]
[392621761,1761753038640,-1216.547941,0.00019812,7]
[392621762,1761753038650,-1216.547941,0.00019812,7]
[392621763,1761753038661,-1216.547941,0.00019812,7]
[392621764,1761753038674,-151.0,0.00019856,2]
[392621765,1761753038684,-500.0,0.00019856,2]
[392621766,1761753038695,-151.0,0.00019856,2]
[392621767,1761753038705,-151.0,0.00019868,7]
[392621768,1761753038715,-277.445594,0.00019868,7]
[392621769,1761753038724,-277.445594,0.00019868,7]
[392621770,1761753038734,-277.445594,0.00019868,7]
[392621771,1761753038744,-277.445594,0.00019868,7]
[392621772,1761753038754,-151.0,0.00019868,7]
[392621773,1761753038764,-166.275806,0.00019868,7]
[392621774,1761753038774,-254.756086,0.00019868,2]
[392621775,1761753038786,-254.756086,0.00019868,2]
[392621776,1761753038795,-151.0,0.00019868,7]
[392621777,1761753038804,-254.756086,0.00019868,2]
[392621778,1761753038814,-254.756086,0.00019868,2]
[392621779,1761753038824,-151.0,0.00019868,7]
[392621780,1761753038834,-151.0,0.00019868,7]
[392621781,1761753038843,-151.0,0.00019868,7]
[392621782,1761753038852,-151.0,0.00019868,7]
[392621783,1761753038862,-208.06987857,0.00019873,2]
[392621784,1761753038875,-291.93012143,0.00019873,2]
[392621785,1761753038884,-198.0,0.00019911,2]
[392621786,1761753038894,-500.0,0.00019911,2]
[392621787,1761753038903,-151.0,0.00019911,2]
[392621788,1761753038912,-3020.92274008,0.00019926,2]
[392621789,1761753038922,-502.79985843,0.00019965,2]
[392621790,1761753038932,-151.0,0.00019965,2]
[392621791,1761753038941,-2970.94455676,0.0002,2]
[392621792,1761753038957,-781.97557268,0.0002,2]
[392621793,1761753038969,-11595.82128515,0.0002,2]
[392621794,1761753038978,-151.0,0.0002,7]
[392621795,1761753038988,-151.0,0.0002,7]
[392621796,1761753038997,-156.251383,0.0002,7]
[392621797,1761753039007,-156.251383,0.0002,7]
[392621798,1761753039016,-156.251383,0.0002,7]
[392621799,1761753039027,-156.251383,0.0002,7]
[392621800,1761753039037,-151.0,0.0002,7]
[392621801,1761753039047,-151.0,0.0002,7]
[392621802,1761753039057,-151.0,0.0002,7]
[392621803,1761753039067,-151.0,0.0002,7]
[392621804,1761753039079,-151.0,0.0002,7]
[392621805,1761753039089,-151.0,0.0002,7]
[392621806,1761753039099,-151.0,0.0002,7]
[392621807,1761753039109,-151.0,0.0002,7]
[392621808,1761753039120,-151.0,0.0002,7]
[392621809,1761753039130,-151.0,0.0002,7]
[392621810,1761753039140,-151.0,0.0002,7]
[392621811,1761753039150,-345.523866,0.0002,7]
[392621812,1761753039159,-345.523866,0.0002,7]
[392621813,1761753039168,-345.523866,0.0002,7]
[392621814,1761753039178,-345.523866,0.0002,7]
[392621815,1761753039188,-151.0,0.0002,7]
[392621816,1761753039198,-151.0,0.0002,7]
[392621817,1761753039208,-151.0,0.0002,7]